[Event "Portuguese Team Blitz-ch 2022"]
[Site "Viseu"]
[Date "2022.06.12"]
[Round "4.2"]
[White "Martins, Bruno Andre Leite"]
[Black "Sismeiro, Miguel"]
[Result "1-0"]
[ECO "B47"]
[WhiteElo "2327"]
[BlackElo "2148"]
[Annotator "TA"]
[PlyCount "101"]
[EventDate "2022.06.12"]
[EventType "team-tourn"]
[EventCountry "POR"]
[SourceTitle "playchess.com"]
[Source "ChessBase"]
[SourceQuality "1"]
[TimeControl "180+2"]

{[%evp 15,101,12,9,11,0,7,89,89,285,179,277,256,370,368,947,933,889,754,1135,1126,1370,1314,1369,1402,1402,1366,1443,850,850,818,804,782,1520,1336,2201,2225,1425,378,377,367,370,374,370,364,369,366,388,329,314,212,389,378,409,400,409,399,571,565,743,743,1795,1761,1018,729,706,699,677,654,4813,1326,12792,9203,29975,5497,29976,29977,29980,29981,29979,29980,29985,29986,29992,29993,29996,29997,29997,29992]} 1. e4 c5 2. Nf3 e6 3. d4 cxd4 4. Nxd4 Nc6 5. Nc3 Qc7 6. Nxc6 bxc6 7. Bd3 d5 8. O-O Nf6 9. Qe2 {B47: Sicilian: Taimanov: 5 Nc3 Qc7 6 f4, 6 g3 and 6 Be2.} Bd6 {[#]} 10. exd5 $146 ({Predecessor:} 10. f4 O-O 11. e5 Bc5+ 12. Kh1 Ne8 13. Na4 Bb6 14. b3 c5 15. c4 Bd7 16. Nc3 g6 17. cxd5 exd5 18. Nxd5 Qd8 19. Bc4 Bc6 20. Rd1 Qh4 21. Be3 Ng7 22. Bf2 Qh5 23. Nf6+ {1-0 (23) Komiagina,M (2241)-Zaksaite,S (2202) Chess.com INT 2021}) 10... Bxh2+ (10... Nxd5 $11 {keeps the balance.} 11. g3 Nxc3 12. bxc3 e5) 11. Kh1 $16 {[#] g3 is the strong threat. White is better.} h5 $2 (11... cxd5 $2 12. f4 $18) (11... Bf4 $16 {might work better.}) 12. dxe6 Bxe6 (12... Bf4 $142 13. Bxf4 Qxf4) 13. f4 $18 {[%cal Bf2f4,Bf4f5,Bf5e6,Be6f7][%mdl 32]} Ng4 {[#]} 14. f5 $1 Bg1 $2 (14... Bg3 15. Rf3 (15. fxe6 $2 Bf2 $19) 15... h4) 15. Bf4 Qe7 16. Kxg1 g5 17. fxe6 Qc5+ 18. Kh1 gxf4 19. exf7+ Kf8 20. Rxf4 {And now Re1 would win.} Qg5 21. Rf3 Qh4+ 22. Rh3 Nf2+ 23. Kh2 Nxh3 24. gxh3 Qf4+ 25. Kh1 Qg3 26. Qg2 $2 (26. Bf5) 26... Qxg2+ 27. Kxg2 {Really sharp!} Kxf7 28. Rf1+ Ke7 29. Rf3 Rhg8+ 30. Rg3 h4 31. Rxg8 Rxg8+ 32. Kh2 Rg3 $2 (32... Kf6 33. Ne4+ Ke5) 33. Ne2 Rf3 34. Kg2 {Prevents Rf2+.} Rf6 35. Nd4 Rf4 (35... c5 $142 36. Nf5+ Kd8 37. Nxh4 c4) 36. Nxc6+ Kd6 37. Nxa7 Kc5 38. Nb5 Rf8 39. Nc3 Kd4 40. Nd1 Rg8+ 41. Kh2 Rg3 42. a4 {aiming for b4.} Ke5 43. a5 {White threatens a6 and mate.} Kf4 44. Nc3 {Intending Ne2+ and mate.} Kf3 45. Be4+ {White mates.} Kf2 46. a6 Rg7 47. Bb7 Rf7 48. a7 Rxb7 49. a8=Q Rxb2 50. Qg2+ Ke3 51. Nd1+ {Black did not feel at home in the position after the opening.  Weighted Error Value: White=0.22 (precise) /Black=0.81} 1-0

[Event "Portuguese Team Blitz-ch 2022"]
[Site "Viseu"]
[Date "2022.06.12"]
[Round "4.3"]
[White "Pintor, Simao Maciel Abranch"]
[Black "Rego, Pedro Filipe"]
[Result "0-1"]
[ECO "A05"]
[WhiteElo "2066"]
[BlackElo "2251"]
[Annotator "TA"]
[PlyCount "102"]
[EventDate "2022.06.12"]
[EventType "team-tourn"]
[EventCountry "POR"]
[SourceTitle "playchess.com"]
[Source "ChessBase"]
[SourceQuality "1"]
[TimeControl "180+2"]

{[%evp 15,101,28,28,28,27,20,18,17,20,14,14,-51,-38,-49,-12,-10,-11,-34,-8,-30,-35,-100,-98,-114,-8,-215,0,-194,-189,-331,-166,-350,-325,-322,-204,-219,-229,-223,-244,-248,-245,-266,-261,-284,-38,-33,299,310,305,300,583,315,424,429,434,419,435,436,29961,29961,6730,6632,5113,3033,29994,660,766,0,0,0,887,890,766,550,538,531,706,655,674,-29956,-29954,-29936,-29946,-12828,-29939,-5550,-5240,-29999]} 1. Nf3 {[%emt 0:00:01] Golod,V} Nf6 {[%emt 0:00:04]} 2. g3 {[%emt 0:00:01]} d5 {[%emt 0:00:03]} 3. b3 {[%emt 0:00:01]} g6 {[%emt 0:00:06]} 4. Bb2 {[%emt 0:00:00]} Bg7 5. Bg2 O-O {[%emt 0:00:02]} 6. c4 {[%emt 0:00:04]} c6 {[%emt 0:00:08]} 7. O-O {[%emt 0:00:02]} Re8 {[%emt 0:00:10]} 8. d4 {[%emt 0:00:08]} Bf5 {[%emt 0:00:17]} 9. Nc3 {[%emt 0:00:03] D78: Fianchetto Grünfeld: 6 0-0 c6.} Ne4 {[%emt 0:00:06]} 10. Nh4 {[%emt 0:00:13]} Nxc3 {[%emt 0:00:05]} 11. Bxc3 {[%emt 0:00:01] The position is equal.} Be6 {[%emt 0:00:01]} 12. Qd3 {[%emt 0:00:19]} Nd7 {[%emt 0:00:06] [#]} 13. f4 $146 {[%emt 0:00:06]} (13. Rac1 $11) ({Predecessor:} 13. c5 f5 14. b4 Bf7 15. f4 b6 16. Nf3 a5 17. a3 axb4 18. axb4 b5 19. Bb2 {½-½ (34) Malakhov,V (2670)-Golod,V (2523) Bad Wiessee 2002 EXT 2003 [Golod,V]}) 13... dxc4 $15 14. bxc4 {[%emt 0:00:01]} Nb6 {[%emt 0:00:24]} (14... Nc5 $5 {[%cal Rc5d3]} 15. Qd2 Na4 $15) 15. d5 $1 {[%emt 0:00:26]} Bxc3 {[%emt 0:00:19]} (15... cxd5 16. Bxg7 Kxg7 17. f5 gxf5 18. Nxf5+ Kh8 19. cxd5 Bxd5 20. Rad1 $14) 16. Qxc3 {[%emt 0:00:01]} cxd5 {[%emt 0:00:01]} 17. f5 {[%emt 0:00:17]} (17. c5 $5 {[%cal Rc5b6]} Qc8 18. Qd4 $15) 17... d4 {[%emt 0:00:02]} 18. Qf3 {[%emt 0:00:01]} (18. Qd2 $15 Bxc4 19. Bxb7) 18... Bxc4 $17 {[%emt 0:00:04]} 19. fxg6 {[%emt 0:00:04]} hxg6 {[%emt 0:00:01]} ({Better is} 19... fxg6 $17 {aiming for ...e5.} 20. Rac1 Rf8 21. Qxf8+ Qxf8 22. Rxf8+ Kxf8) 20. Qf4 $2 {[%emt 0:00:48]} (20. Qg4 $1 $11 Qd7 21. Qg5) 20... Qd6 $2 {[%emt 0:00:20]} (20... e5 $19 21. Qh6 Re6) 21. Qh6 {[%emt 0:00:01]} (21. Qg5 $1 $11 {and White stays safe.}) 21... Qe5 {[%emt 0:00:01]} (21... Bxe2 $2 22. Rf2 d3 23. Bf1 $19) 22. Rf4 {[%emt 0:00:12]} (22. Bxb7 {was worth a try.} Rab8 23. Bc6) 22... Qg7 {[%emt 0:00:24]} (22... Bxe2 23. Nxg6 Qg7 24. Qxg7+ Kxg7 25. Nh4 $17) (22... d3 $142 23. Re1 d2) 23. Qg5 $2 {[%emt 0:00:07]} (23. Qxg7+ Kxg7 24. Rxd4) 23... e5 {[%emt 0:00:09]} 24. Rf6 {[%emt 0:00:01]} Re6 {[%emt 0:00:02]} (24... Bxe2 $2 25. Bxb7 Rad8 26. Bc6 $19) 25. Raf1 {[%emt 0:00:00]} Rxf6 {[%emt 0:00:08]} (25... Bxe2 26. Rxf7 Qxf7 27. Rxf7 Kxf7 28. Bh3 $11) 26. Rxf6 {[%emt 0:00:02][%cal Rh4g6] [#]} Nd7 $1 {[%emt 0:00:02]} (26... Bxa2 27. Nxg6 Nd7 28. Rd6 $15) 27. Rd6 {[%emt 0:00:09] [#]} Nf8 {[%emt 0:00:06]} (27... Nc5 28. Qc1 Qf8 29. Rf6 $11) 28. Nf3 {[%emt 0:00:16][%cal Bh4f3,Bf3d2,Bd2c4,Bc4d6,Bd6e8,Be8f6,Bf6g4,Bg4h6,Bh6f7][%mdl 32]} Re8 {[%emt 0:00:02]} ({Don't go for} 28... Bxa2 $2 29. Qe7 $19) (28... Bxe2 29. Qxe5 Bxf3 30. Qxg7+ Kxg7 31. Bxf3 $17) 29. Nd2 {[%emt 0:00:00]} Re6 $2 {[%emt 0:00:21]} 30. Nxc4 $15 {[%emt 0:00:01]} Rxd6 {[%emt 0:00:04][%mdl 8192]} (30... b5 $15 {keeps the upper hand.} 31. Bd5 (31. Rxe6 Nxe6 32. Qc1 bxc4 $17) 31... bxc4) 31. Nxd6 $18 {[%emt 0:00:01]} Ne6 {[%emt 0:00:01]} 32. Qe7 {[%emt 0:00:05]} b6 $2 {[%emt 0:00:07]} (32... Qf8 33. Qxf8+ Kxf8 34. Bxb7 Nc5) 33. Ne8 {[%emt 0:00:01]} Qh6 {[%emt 0:00:05][%cal Od4d3]} 34. Nf6+ {[%emt 0:00:06]} Kg7 {[%emt 0:00:03]} 35. Ng4 {[%emt 0:00:05] Prevents Qe3+.} Qc1+ {[%emt 0:00:02]} 36. Kf2 {[%emt 0:00:03]} Qc8 {[%emt 0:00:15]} (36... e4 $18) 37. Qf6+ {[%emt 0:00:03]} Kg8 {[%emt 0:00:01]} 38. Nh6+ {[%emt 0:00:03]} Kh7 {[%emt 0:00:01]} 39. Nxf7 {[%emt 0:00:03] Intending Be4 and mate.} d3 {[%emt 0:00:03]} 40. exd3 {[%emt 0:00:08]} (40. Be4 $142 Qc5+ 41. Kg2 Qg1+ 42. Kxg1 Kg8 43. Bxg6 Ng7 44. Nh6+ Kh8 45. Qf8#) 40... Qc5+ {[%emt 0:00:00]} 41. Kf1 $2 {[%emt 0:00:07]} (41. Kf3 $18 {[%csl Gf7][%cal Rf6h8]} Nd4+ 42. Kg4 Qc8+ 43. Kh4 Nf5+ 44. Kg5 Qc1+ 45. Kg4 Nh6+ 46. Kh4 Nxf7 47. Qxf7+ Kh6 48. Qf8+ Kh7 49. Qe7+ Kh8 50. Qxe5+ Kh7 51. Qe7+ Kh8 52. Qf8+ Kh7 53. Be4 Qh6+ 54. Qxh6+ Kxh6 55. d4) 41... Qc1+ $11 {[%emt 0:00:01]} 42. Kf2 {[%csl Gf7][%cal Rf6h8]} Qd2+ $2 {[%mdl 8192]} (42... Qc5+ $11 43. Kf3 Nd4+ 44. Kg4 Qc8+ 45. Kg5 Qf5+ 46. Qxf5 gxf5 47. Nxe5 Kg7) 43. Kg1 $18 {[%emt 0:00:09][%csl Gf7][%cal Rf6h8]} Qe3+ {[%emt 0:00:02]} 44. Qf2 {[%emt 0:00:02]} Qxd3 {[%emt 0:00:01]} 45. Nxe5 {[%emt 0:00:02]} Qd1+ {[%emt 0:00:02]} 46. Bf1 {[%emt 0:00:01]} Ng5 {[%emt 0:00:02] Prevents Qf7+. Strongly threatening ...Nh3+.} 47. h4 $4 {[%emt 0:00:03][%mdl 8192]} (47. Qe3 $18 Ne6 48. Nd3) 47... Nh3+ $1 {[%emt 0:00:02]} 48. Kg2 {[%emt 0:00:03]} Nxf2 {[%emt 0:00:01]} 49. Kxf2 {[%emt 0:00:01]} Qd4+ {[%emt 0:00:00]} 50. Kf3 {[%emt 0:00:02]} Qxe5 {[%emt 0:00:01]} 51. Kg4 {[%emt 0:00:02]} Qf5# {[%emt 0:00:01] A wild game.  Weighted Error Value: White=1.04/Black=1.10} 0-1

[Event "Portuguese Team Blitz-ch 2022"]
[Site "Viseu"]
[Date "2022.06.12"]
[Round "4.4"]
[White "Silva, Miguel Antonio Neto"]
[Black "Pipiras, Filipa Fortuna"]
[Result "1-0"]
[ECO "A22"]
[WhiteElo "2215"]
[BlackElo "2135"]
[Annotator "TA"]
[PlyCount "105"]
[EventDate "2022.06.12"]
[EventType "team-tourn"]
[EventCountry "POR"]
[SourceTitle "playchess.com"]
[Source "ChessBase"]
[SourceQuality "1"]
[TimeControl "180+2"]

{[%evp 9,105,12,18,12,16,0,3,0,12,0,0,0,12,7,0,13,5,0,0,-8,12,0,0,0,0,0,37,0,31,29,35,20,108,37,23,33,35,16,23,-7,-8,0,0,0,3,10,63,0,12,16,81,18,59,53,60,36,39,0,241,204,249,245,220,216,390,335,471,436,412,104,100,11,21,6,6,3,5,0,8,0,4,4,10,0,120,120,122,122,133,118,172,172,12838,12839,12839,12839,12838,12837]} 1. c4 Nf6 2. Nc3 e5 3. g3 Nc6 4. Bg2 Bc5 5. d3 d6 6. a3 {A25: English Opening vs King's Indian with ...Nc6 but without early d3.} a5 7. Rb1 h6 8. Nf3 {The position is equal.} Be6 9. Nd2 O-O 10. O-O Qd7 11. Nd5 Bxd5 12. cxd5 Ne7 13. e4 c6 {[%cal Rc6d5] [#]} 14. dxc6 $146 ({Predecessor:} 14. b4 axb4 15. axb4 Ba7 16. dxc6 bxc6 17. Nb3 Rab8 18. Bd2 Ng6 19. Ra1 Rfe8 20. Ra3 {½-½ (35) Arkhipov,S (2485)-Epishin,V (2630) Moscow 1992}) 14... bxc6 15. b4 axb4 16. axb4 Bb6 17. Nc4 Bc7 18. Bb2 Rab8 19. Bc3 Ng6 20. d4 Qe7 (20... Qe6 $11 {keeps the balance.} 21. d5 cxd5 22. exd5 Qd7) 21. d5 ({Better is} 21. Na5 $16 Qe8 22. dxe5 dxe5 23. Qa4) 21... cxd5 $14 22. exd5 Rb5 23. Na3 Rb7 24. b5 Rfb8 25. Qe2 $1 Bb6 26. Rfc1 Bc5 27. Bb4 {A strong pair of Bishops.} Nd7 (27... Bxb4 $11 28. Rxb4 Qd8) 28. Bf1 ({White should try} 28. Bxc5 $1 $14 Nxc5 29. Nc4) 28... Bxb4 29. Rxb4 Nc5 {[#]} (29... Nf6 $11 {remains equal.}) 30. Rcb1 (30. Nc4 $1 $16) 30... Nf8 {[%cal Oc5a6]} 31. Nc4 Ra8 {Against Na5} 32. Qb2 Nfd7 33. Ra1 Qd8 (33... Rxa1 $11 34. Qxa1 Nb6) 34. Nxd6 $18 Rbb8 35. Rxa8 Rxa8 36. b6 Nf6 $2 (36... Nxb6 37. Nxf7 (37. Rxb6 Na4 $15) (37. Qxe5 f6 $16) 37... Kxf7) 37. Nc4 Nxd5 (37... Qxd5 $142 38. Qxe5 Nb7) 38. Rb5 Na4 {[%cal Bc5a4,Ba4b6,Bb6d7,Bd7f6][%mdl 32]} 39. Qxe5 (39. Qb3 $18 {Threatens to win with b7.} Nac3 40. b7 (40. Nxe5 Nxb5 41. Bxb5 Qd6 $16)) 39... Ndxb6 $16 40. Nxb6 {White is more active.} (40. Nd6 $16) 40... Nxb6 $11 41. h4 Nd7 42. Qd4 {[#] Hoping for Rd5.} Nf6 {Against Rd5} 43. Qc3 Qd7 44. Rc5 Re8 45. Rc7 $1 Qe6 {...Nd5 is the strong threat.} (45... Qd6 {is more complex.} 46. Qc4 Nd7 47. Rb7 g6) 46. Bc4 Qe1+ (46... Nd5 $11 47. Kh2 Nxc3 48. Bxe6 Rxe6 49. Rxc3 h5) 47. Qxe1 $16 Rxe1+ {[%mdl 4096] Endgame KRB-KRN} 48. Kg2 Ra1 49. Bxf7+ Kh7 (49... Kf8 $16 {was worth a try.} 50. f4 Re1) 50. h5 $18 Ra5 $2 (50... Ra8 51. Rb7 Ne8) 51. Bg6+ {White is clearly winning.} Kh8 52. Rc8+ Ng8 53. Bf7 {Weighted Error Value: White=0.30/Black=0.35} 1-0

[Event "Portuguese Team Blitz-ch 2022"]
[Site "Viseu"]
[Date "2022.06.12"]
[Round "4.5"]
[White "Pereira, Ruben"]
[Black "Silva, Stephane"]
[Result "1/2-1/2"]
[ECO "C02"]
[WhiteElo "2436"]
[BlackElo "2020"]
[Annotator "TA"]
[PlyCount "54"]
[EventDate "2022.06.12"]
[EventType "team-tourn"]
[EventCountry "POR"]
[SourceTitle "playchess.com"]
[Source "ChessBase"]
[SourceQuality "1"]
[TimeControl "180+2"]

{[%evp 11,54,0,0,-12,-12,-7,-22,-16,-14,-8,0,-12,0,-91,-35,-45,-23,-86,-77,-96,-102,-95,-90,-280,-296,-295,-179,-169,-170,-166,0,0,0,0,193,127,127,-584,0,-606,0,0,0,0,0]} 1. e4 e6 2. d4 d5 3. e5 c5 4. c3 Nc6 5. Nf3 Qb6 6. Bd3 cxd4 7. O-O $1 {[%mdl 4] is currently scoring better than 7.cxd4. C02: French: Advance Variation.} Bd7 8. Nbd2 dxc3 9. bxc3 Nge7 10. Nb3 Ng6 11. Re1 Qc7 {[%cal Rc6e5] [#]} 12. Nbd4 $146 (12. Qe2 $11 {remains equal.}) ({Predecessor:} 12. Qe2 Be7 13. Nbd4 a6 14. Rb1 Rc8 15. h4 Bxh4 16. Nxh4 Nxh4 17. Ba3 Nxd4 18. cxd4 {0-1 (51) Schmakel,S (2435)-Escalante Ramirez,B (2456) chess24.com INT 2020}) 12... Be7 (12... Ncxe5 $17 13. Nxe5 Nxe5) 13. Rb1 {[%cal Oh2h4]} O-O $36 {[%cal Rc6e5][%mdl 2048] Black is more active.} ({But not} 13... Ngxe5 14. Nxe5 Nxe5 15. Bf4 $14) 14. h4 (14. Qe2 $11) 14... Ncxe5 $17 15. Nxe5 Nxe5 16. Bf4 Bd6 17. Rxe5 Bxe5 $19 18. Bxh7+ Kxh7 19. Qh5+ Kg8 20. Bxe5 Qc8 (20... Qxc3 $2 21. Nf5 $1 {[%mdl 512]} exf5 22. Bxc3 $18) ({Better is} 20... Qd8 $1 $19 {Strongly threatening ...f6.} 21. Bd6 b6 $1 22. Bxf8 Qxf8) 21. Bxg7 $11 {[%mdl 64] Decoy} Kxg7 22. Qg5+ Kh8 $2 (22... Kh7 $11 {and Black is okay.} 23. Qh5+ Kg7 24. Qg5+ Kh8) 23. Qh6+ $18 {[%mdl 1024] White has strong compensation.} Kg8 {[#] White must now prevent ...Re8.} 24. Nf3 $2 {[%mdl 8192] White is much more active. The black rooks are badly placed.} (24. Re1 $1 $16 {[%cal Re1e3] is forced if you want to stay better.}) 24... f6 $2 ({Black should play} 24... Qxc3 $19 25. Rxb7 Be8) 25. Rb4 $2 {[%mdl 8192]} (25. Qg6+ $11 Kh8 26. Qh6+ Kg8 27. Qg6+ Kh8 28. Qh6+ Kg8) 25... e5 $2 (25... Kf7 $19 26. Qh7+ Ke8) 26. Qg6+ $11 Kh8 27. Qh6+ Kg8 {Weighted Error Value: White=0.72/Black=1.16} 1/2-1/2

[Event "Portuguese Team Blitz-ch 2022"]
[Site "Viseu"]
[Date "2022.06.12"]
[Round "4.6"]
[White "Ribeiro, Gustavo"]
[Black "Fidalgo, Andre Neves"]
[Result "1-0"]
[ECO "A16"]
[WhiteElo "1867"]
[BlackElo "2261"]
[Annotator "TA"]
[PlyCount "48"]
[EventDate "2022.06.12"]
[EventType "team-tourn"]
[EventCountry "POR"]
[SourceTitle "playchess.com"]
[Source "ChessBase"]
[SourceQuality "1"]
[TimeControl "180+2"]

{[%evp 16,48,15,18,44,31,27,-7,0,-14,20,14,31,33,22,0,0,-22,0,8,183,196,179,156,180,173,252,251,248,252,231,221,234,181,256]} 1. c4 {[%emt 0:00:00]} Nf6 {[%emt 0:00:01]} 2. Nc3 {[%emt 0:00:01]} d5 {[%emt 0:00:01]} 3. cxd5 {[%emt 0:00:01]} Nxd5 {[%emt 0:00:01]} 4. g3 {[%emt 0:00:00]} g6 {[%emt 0:00:02]} 5. Bg2 {[%emt 0:00:01]} Nxc3 {[%emt 0:00:02]} 6. bxc3 {[%emt 0:00:01]} Bg7 {[%emt 0:00:01]} 7. d4 {[%emt 0:00:01]} O-O {[%emt 0:00:02]} 8. Nf3 {[%emt 0:00:01]} c5 {[%emt 0:00:01]} 9. O-O {[%emt 0:00:02]} Qa5 {[%emt 0:00:01] D75: Fianchetto Grünfeld: Main Line with 7...c5.} 10. Bd2 {[%emt 0:00:05]} Qa6 {[%emt 0:00:02]} 11. e3 {[%emt 0:00:04]} Nc6 {[%emt 0:00:03] The position is equal.} 12. Re1 {[%emt 0:00:01] [#]} Na5 $146 {[%emt 0:00:16]} ({Predecessor:} 12... Be6 13. Ng5 Bc4 14. Ne4 b6 15. dxc5 Rad8 16. cxb6 axb6 17. Qc2 Ne5 18. a4 Rd7 19. Bc1 {½-½ (34) Barrientos Chavarriaga,S (2457)-Kobo,O (2460) Chess.com INT 2020}) 13. Bf1 {[%emt 0:00:02]} ({Of course not} 13. dxc5 Bg4 $15) 13... Qc6 {[%emt 0:00:13]} 14. Rb1 {[%emt 0:00:09]} b6 {[%emt 0:00:13]} 15. Bg2 {[%emt 0:00:11] [#] And now Nh4 would win.} Bb7 {[%emt 0:00:01]} 16. Qe2 {[%emt 0:00:11]} Rfd8 {[%emt 0:00:06]} 17. c4 {[%emt 0:00:14] aiming for Bxa5.} cxd4 $2 {[%emt 0:00:10] This move loses the game for Black.} (17... Qa4 $11 {and Black has nothing to worry.}) 18. Bxa5 $18 {[%emt 0:00:00]} d3 {[%emt 0:00:40]} (18... bxa5 $2 19. Nh4 Qc5 20. exd4 Bxd4 21. Bxb7 $18) 19. Qd2 {[%emt 0:00:04]} Qxc4 {[%emt 0:00:04]} (19... bxa5 $2 20. Nh4 Qxc4 21. Rec1 $18 (21. Bxb7 Bc3 $18) (21. Rxb7 Rac8 $11)) 20. Rec1 {[%emt 0:00:03]} Qa6 {[%emt 0:01:28]} (20... Qg4 {was necessary.}) 21. Bc3 {[%emt 0:00:03]} Bf8 {[%emt 0:00:12]} 22. Ne1 {[%emt 0:00:15][%cal Bf3e1,Be1g2,Bg2f4][%mdl 32]} Bxg2 {[%emt 0:00:03]} 23. Nxg2 {[%emt 0:00:02]} Rac8 {[%emt 0:00:02]} 24. Nf4 {[%emt 0:00:02]} Bg7 {Weighted Error Value: White=0.10 (very precise) /Black=0.32} (24... Bh6 $142 25. Bd4 Bxf4) 1-0

[Event "Portuguese Team Blitz-ch 2022"]
[Site "Viseu"]
[Date "2022.06.12"]
[Round "4.7"]
[White "Ferreira, Luis Pedro"]
[Black "Carvalho, Vitor Hugo Pina Soar"]
[Result "0-1"]
[ECO "C28"]
[WhiteElo "2183"]
[BlackElo "1818"]
[Annotator "TA"]
[PlyCount "81"]
[EventDate "2022.06.12"]
[EventType "team-tourn"]
[EventCountry "POR"]
[SourceTitle "playchess.com"]
[Source "ChessBase"]
[SourceQuality "1"]
[TimeControl "180+2"]

{[%evp 11,81,-16,41,37,41,12,25,0,8,3,27,31,16,24,24,0,0,0,0,0,9,-14,62,8,40,15,157,151,156,150,196,175,192,183,181,179,164,168,254,247,550,523,805,789,887,882,2417,2123,3800,2218,12835,12835,12831,6614,12841,12840,12841,12835,29977,12841,12841,12841,12840,12841,12842,12842,29985,29986,29986,12846,12846,12847]} 1. e4 {[%emt 0:00:02]} e5 {[%emt 0:00:01]} 2. Nc3 {[%emt 0:00:01]} Nc6 {[%emt 0:00:01]} 3. Bc4 {[%emt 0:00:01]} Nf6 {[%emt 0:00:06]} 4. d3 {[%emt 0:00:01]} Bc5 {[%emt 0:00:02]} 5. Bg5 {[%emt 0:00:02][%cal Bc1g5,Bg5h4,Bh4g3][%mdl 32]} h6 {[%emt 0:00:06]} 6. Bh4 {[%emt 0:00:01]} g5 {[%emt 0:00:09]} (6... Na5 $11) 7. Bg3 $14 {C28: Vienna Game: 2...Nf6 3 Bc4 Nc6.} d6 {[%emt 0:00:01]} 8. Na4 {[%emt 0:00:18]} (8. h4 $5 {[%cal Rh4g5]}) 8... Bb6 {[%emt 0:00:03]} 9. Nxb6 {[%emt 0:00:04] White has an edge.} axb6 {[%emt 0:00:02]} 10. c3 {[%emt 0:00:01] [#]} Na5 $146 {[%emt 0:00:09]} ({Predecessor:} 10... Ne7 11. h4 gxh4 12. Bxh4 Ng6 13. Qb3 Qe7 14. Nf3 Bg4 15. O-O-O Nxh4 16. Rxh4 c6 {1-0 (49) Triay Moll,L (2224)-Fortuny,M (2113) ICCF email 2006}) 11. Bb5+ {[%emt 0:00:01]} Bd7 {[%emt 0:00:04]} 12. Bxd7+ {[%emt 0:00:05]} Qxd7 {[%emt 0:00:02]} 13. Ne2 {[%emt 0:00:07]} Nc6 {[%emt 0:00:04]} 14. f3 {[%emt 0:00:01]} Nh5 {[%emt 0:00:10]} 15. d4 {[%emt 0:00:04]} Nxg3 {[%emt 0:00:05]} 16. Nxg3 {[%emt 0:00:01]} O-O-O {[%emt 0:00:04]} ({Black should play} 16... d5 $11) 17. Qa4 {[%emt 0:00:09]} (17. d5 $14 Ne7 18. Qb3) 17... Kb8 {[%emt 0:00:06]} 18. O-O-O {[%emt 0:00:16]} (18. d5 $5 {[%cal Rd5c6]} Ne7 19. Qxd7 Rxd7 20. Kf2 $11) 18... Ne7 {[%emt 0:00:02] White now steadily converts the win.} (18... exd4 $11 {remains equal.} 19. cxd4 d5) 19. Qxd7 $16 {[%emt 0:00:03]} Rxd7 {[%emt 0:00:02]} 20. dxe5 {[%emt 0:00:01]} Rhd8 {[%emt 0:00:14]} (20... d5 $16 {was worth a try.} 21. h4 gxh4) 21. exd6 $18 {[%emt 0:00:07]} Rxd6 {[%emt 0:00:01]} 22. Rxd6 {[%emt 0:00:04]} Rxd6 {[%emt 0:00:01]} 23. Rd1 {[%emt 0:00:02]} Rxd1+ {[%emt 0:00:09]} 24. Kxd1 {[%emt 0:00:02][%mdl 4096] Endgame KN-KN} Ng6 {[%emt 0:00:04]} (24... Kc8 {was called for.} 25. a4 Kd8) 25. Nf5 {[%emt 0:00:05]} Nf4 $2 {[%emt 0:00:03] [#]} (25... h5 {is a better chance.} 26. Ke2 Kc8) 26. Nxh6 {[%emt 0:00:03]} Nxg2 {[%emt 0:00:02]} 27. Nxf7 {[%emt 0:00:01]} g4 {[%emt 0:00:24]} 28. fxg4 {[%emt 0:00:11]} Ne3+ {[%emt 0:00:01]} 29. Ke2 {[%emt 0:00:01]} Nxg4 {[%emt 0:00:02]} 30. h4 {[%emt 0:00:00]} Kc8 {[%emt 0:00:05]} 31. Kf3 {[%emt 0:00:02]} Nf6 {[%emt 0:00:06]} 32. e5 {[%emt 0:00:07]} Nh7 {[%emt 0:00:03]} 33. Ng5 {[%emt 0:00:03]} Nf8 {[%emt 0:00:04]} 34. Kg4 {[%emt 0:00:04]} Kd7 {[%emt 0:00:01] Against e6+} 35. Kf5 {[%emt 0:00:00]} Ke7 {[%emt 0:00:03]} 36. e6 {[%emt 0:00:06] [#] Intending h5 and mate.} b5 {[%emt 0:00:09]} 37. h5 {[%emt 0:00:01]} c5 {[%emt 0:00:03]} 38. h6 {[%emt 0:00:02]} b4 {[%emt 0:00:04]} 39. cxb4 {[%emt 0:00:06]} cxb4 {[%emt 0:00:02]} 40. h7 {[%emt 0:00:01]} (40. b3 $142 Kd8 41. Kf6 Ke8 42. e7 Nd7+ 43. Ke6 Nf8+ 44. exf8=Q+ Kxf8 45. Kf6) 40... Nxh7 {[%emt 0:00:03]} 41. Nxh7 {[%emt 0:00:01][%mdl 32768] Weighted Error Value: White=0.12 (very precise) /Black=0.57. Loss on time!?} 0-1